fUSD/lending_fUSD_20240412
["ID","MTS","AMOUNT","RATE_DAILY","PERIOD"]
[322220207,1712887839112,-158.38413686,0.00027137,2]
[322220209,1712887839121,-330.52334506,0.00027197,2]
[322220211,1712887839131,-2378.8440991,0.00027233,2]
[322220213,1712887839140,-157.96399926,0.00027268,2]
[322220215,1712887839150,-200.0,0.00027268,2]
[322220217,1712887839159,-1086.31946517,0.00027285,2]
[322220219,1712887839168,-347.84,0.00027286,2]
[322220221,1712887839178,-347.84,0.00027287,2]
[322220223,1712887839188,-3528.26702456,0.00027294,2]
[322220225,1712887839197,-3903.6751,0.00027295,2]
[322220227,1712887839207,-100000.0,0.00027296,2]
[322220229,1712887839217,-1000.0,0.00027297,2]
[322220231,1712887839226,-160.3685,0.00027297,2]
[322220234,1712887839237,-245000.0,0.00027297,2]
[322220236,1712887839246,-169.47320594,0.00027297,2]
[322220238,1712887839256,-157.18489306,0.00027297,2]
[322220240,1712887839267,-5332.57083556,0.00027297,2]
[322220242,1712887839276,-157.59573881,0.00027304,2]
[322220244,1712887839286,-204.99388,0.00027313,2]
[322220246,1712887839298,-1000.0,0.00027313,2]
[322220248,1712887839307,-500.0,0.00027313,2]
[322220250,1712887839316,-217.43886492,0.00027316,2]
[322220252,1712887839326,-153.51916251,0.00027333,2]
[322220254,1712887839336,-2187.33814212,0.0002737,2]
[322220256,1712887839345,-3755.76304971,0.0002738,2]
[322220258,1712887839355,-347.84,0.00027385,2]
[322220261,1712887839365,-936.7601,0.0002739,2]
[322220263,1712887839374,-317.41644178,0.00027392,2]
[322220265,1712887839383,-207.60327496,0.00027393,2]
[322220267,1712887839392,-155.99224135,0.00027393,2]
[322220269,1712887839402,-155.43102795,0.00027393,2]
[322220270,1712887839412,-344.88075505,0.00027394,2]
[322220271,1712887839421,-424.58084307,0.00027395,2]
[322220272,1712887839431,-306.48485967,0.00027395,2]
[322220273,1712887839440,-155.0,0.00027395,2]
[322220274,1712887839450,-1795.05499487,0.00027395,2]
[322220275,1712887839459,-287.48221778,0.00027395,2]
[322220276,1712887839468,-789.8373669,0.00027395,2]
[322220277,1712887839478,-492.71472897,0.00027395,2]
[322220278,1712887839487,-1490.44089901,0.00027395,2]
[322220279,1712887839497,-30029.14214955,0.00027395,2]
[322220281,1712887839506,-176.79032288,0.00027395,2]
[322220283,1712887839516,-298.02569821,0.00027395,2]
[322220285,1712887839526,-155.97931421,0.00027395,2]
[322220287,1712887839535,-200.0,0.00027395,2]
[322220289,1712887839546,-4782.51740851,0.00027395,2]
[322220291,1712887839555,-206.6557946,0.00027395,2]
[322220293,1712887839564,-1982.99100311,0.00027395,2]
[322220295,1712887839573,-537.07058197,0.00027395,2]
[322220297,1712887839583,-157.91314307,0.00027395,2]
[322220299,1712887839592,-155.5865598,0.00027395,2]
[322220301,1712887839602,-3787.28191786,0.00027395,2]
[322220304,1712887839612,-155.6930633,0.00027395,2]
[322220306,1712887839621,-1061.24131869,0.00027395,2]
[322220307,1712887839631,-155.91592617,0.00027395,2]
[322220310,1712887839641,-237.78738925,0.00027395,2]
[322220311,1712887839653,-946.95175783,0.00027395,2]
[322220314,1712887839663,-552.1900878,0.00027395,2]
[322220315,1712887839673,-5571.6792615,0.00027395,2]
[322220316,1712887839682,-4848.65209619,0.00027395,2]
[322220317,1712887839693,-563.06824258,0.00027395,3]
[322220318,1712887839703,-155.12332927,0.00027396,2]
[322220319,1712887839712,-618.0,0.00027397,2]
[322220320,1712887839723,-501.67173353,0.00027397,2]
[322220321,1712887839733,-502.06942557,0.00027397,2]
[322220322,1712887839743,-500.0,0.00027397,2]
[322220323,1712887839753,-501.37116726,0.00027397,2]
[322220324,1712887839762,-500.0,0.00027397,2]
[322220325,1712887839773,-410.71311934,0.00027397,2]
[322220326,1712887839783,-539.84345769,0.00027397,2]
[322220327,1712887839793,-500.0,0.00027397,2]
[322220328,1712887839803,-500.0,0.00027397,2]
[322220329,1712887839814,-508.70161409,0.00027397,2]
[322220330,1712887839825,-500.0,0.00027397,2]
[322220331,1712887839836,-500.0,0.00027397,2]
[322220332,1712887839847,-500.0,0.00027397,2]
[322220333,1712887839856,-500.0,0.00027397,2]
[322220334,1712887839866,-500.0,0.00027397,2]
[322220335,1712887839876,-500.0,0.00027397,2]
[322220336,1712887839885,-500.0,0.00027397,2]
[322220337,1712887839898,-500.0,0.00027397,2]
[322220338,1712887839908,-500.0,0.00027397,2]
[322220340,1712887839918,-500.0,0.00027397,2]
[322220341,1712887839928,-500.0,0.00027397,2]
[322220342,1712887839939,-578.6311199,0.00027397,2]
[322220343,1712887839949,-524.17169936,0.00027397,2]
[322220344,1712887839958,-257.89573265,0.00027397,2]
[322220345,1712887839968,-500.0,0.00027397,2]
[322220346,1712887839978,-500.0,0.00027397,2]
[322220347,1712887839988,-500.0,0.00027397,2]
[322220348,1712887839997,-511.36877264,0.00027397,2]
[322220349,1712887840007,-506.94664265,0.00027397,2]
[322220350,1712887840017,-500.0,0.00027397,2]
[322220351,1712887840027,-525.0251885,0.00027397,2]
[322220352,1712887840037,-514.67590876,0.00027397,2]
[322220353,1712887840048,-500.0,0.00027397,2]
[322220354,1712887840057,-500.0,0.00027397,2]
[322220355,1712887840067,-537.66643328,0.00027397,2]
[322220356,1712887840077,-500.0,0.00027397,2]
[322220357,1712887840086,-450.12488561,0.00027397,2]
[322220358,1712887840096,-156.19902747,0.00027397,2]
[322220359,1712887840106,-500.0,0.00027397,2]
[322220360,1712887840115,-576.76927371,0.00027397,2]
[322220361,1712887840125,-500.0,0.00027397,2]
[322220362,1712887840135,-500.0,0.00027397,2]
[322220363,1712887840145,-350.89106928,0.00027397,2]
[322220364,1712887840154,-500.0,0.00027397,2]
[322220365,1712887840165,-220.33956464,0.00027397,2]
[322220366,1712887840175,-500.0,0.00027397,2]
[322220367,1712887840185,-537.16287972,0.00027397,2]
[322220368,1712887840196,-500.0,0.00027397,2]
[322220369,1712887840207,-265.73594345,0.00027397,2]
[322220370,1712887840217,-500.0,0.00027397,2]
[322220371,1712887840227,-500.0,0.00027397,2]
[322220372,1712887840238,-524.63589655,0.00027397,2]
[322220373,1712887840248,-500.0,0.00027397,2]
[322220374,1712887840258,-366.17450703,0.00027397,2]
[322220375,1712887840268,-500.0,0.00027397,2]
[322220376,1712887840278,-309.35465362,0.00027397,2]
[322220377,1712887840288,-500.0,0.00027397,2]
[322220378,1712887840301,-416.15091679,0.00027397,2]
[322220379,1712887840312,-504.03534866,0.00027397,2]
[322220380,1712887840323,-500.0,0.00027397,2]
[322220381,1712887840334,-500.0,0.00027397,2]
[322220382,1712887840345,-500.0,0.00027397,2]
[322220383,1712887840355,-500.0,0.00027397,2]
[322220384,1712887840366,-500.95,0.00027397,2]
[322220385,1712887840376,-580.20198003,0.00027397,2]
[322220386,1712887840385,-507.52337833,0.00027397,2]
[322220387,1712887840395,-171.34323436,0.00027397,2]
[322220388,1712887840404,-500.0,0.00027397,2]
[322220389,1712887840413,-500.0,0.00027397,2]
[322220390,1712887840425,-500.0,0.00027397,2]
[322220391,1712887840436,-567.3245807,0.00027397,2]
[322220392,1712887840445,-547.30356935,0.00027397,2]
[322220393,1712887840455,-509.17884198,0.00027397,2]
[322220395,1712887840465,-335.18152664,0.00027397,2]
[322220397,1712887840475,-500.0,0.00027397,2]
[322220399,1712887840484,-424.18248177,0.00027397,2]
[322220401,1712887840493,-474.76216607,0.00027397,2]
[322220404,1712887840503,-638.34,0.00027397,2]
[322220406,1712887840513,-500.0,0.00027397,2]
[322220408,1712887840523,-510.76008149,0.00027397,2]
[322220410,1712887840533,-500.0,0.00027397,2]
[322220412,1712887840544,-500.0,0.00027397,2]
[322220414,1712887840553,-183.57948208,0.00027397,2]
[322220416,1712887840562,-500.0,0.00027397,2]
[322220418,1712887840571,-565.33245856,0.00027397,2]
[322220420,1712887840581,-500.0,0.00027397,2]
[322220422,1712887840590,-500.0,0.00027397,2]
[322220424,1712887840600,-629.6,0.00027397,2]
[322220426,1712887840610,-515.63097436,0.00027397,2]
[322220428,1712887840619,-500.0,0.00027397,2]
[322220430,1712887840629,-500.0,0.00027397,2]
[322220432,1712887840639,-513.89376057,0.00027397,2]
[322220434,1712887840648,-500.0,0.00027397,2]
[322220436,1712887840658,-508.16490246,0.00027397,2]
[322220438,1712887840668,-513.10619471,0.00027397,2]
[322220440,1712887840678,-500.0,0.00027397,2]
[322220442,1712887840688,-500.0,0.00027397,2]
[322220445,1712887840697,-500.0,0.00027397,2]
[322220447,1712887840708,-577.55649666,0.00027397,2]
[322220449,1712887840718,-500.0,0.00027397,2]
[322220451,1712887840727,-500.0,0.00027397,2]
[322220453,1712887840737,-500.0,0.00027397,2]
[322220455,1712887840747,-500.0,0.00027397,2]
[322220457,1712887840757,-500.0,0.00027397,2]
[322220459,1712887840767,-562.46154006,0.00027397,2]
[322220461,1712887840776,-500.0,0.00027397,2]
[322220463,1712887840786,-623.4922443,0.00027397,2]
[322220465,1712887840797,-500.0,0.00027397,2]
[322220467,1712887840807,-500.0,0.00027397,2]
[322220470,1712887840818,-500.0,0.00027397,2]
[322220472,1712887840828,-500.0,0.00027397,2]
[322220474,1712887840837,-500.0,0.00027397,2]
[322220476,1712887840847,-500.0,0.00027397,2]
[322220478,1712887840857,-500.0,0.00027397,2]
[322220480,1712887840867,-500.0,0.00027397,2]
[322220482,1712887840876,-526.37,0.00027397,2]
[322220484,1712887840885,-500.0,0.00027397,2]
[322220486,1712887840898,-500.0,0.00027397,2]
[322220488,1712887840908,-500.0,0.00027397,2]
[322220490,1712887840917,-500.0,0.00027397,2]
[322220492,1712887840926,-339.03898012,0.00027397,2]
[322220506,1712887841403,-28.21404212,0.00027397,2]
[322220507,1712887841414,-500.0,0.00027397,2]
[322220508,1712887841424,-223.15533512,0.00027397,2]
[322220509,1712887841435,-276.84466488,0.00027397,2]
[322220510,1712887841445,-500.0,0.00027397,2]
[322220511,1712887841455,-500.0,0.00027397,2]
[322220512,1712887841465,-507.23381448,0.00027397,2]
[322220513,1712887841474,-158.72243157,0.00027397,2]
[322220514,1712887841484,-500.0,0.00027397,2]
[322220515,1712887841493,-99.33727022,0.00027397,2]
[322220516,1712887841505,-400.66272978,0.00027397,2]
[322220517,1712887841514,-506.8481372,0.00027397,2]
[322220518,1712887841523,-420.82031111,0.00027397,2]
[322220519,1712887841535,-98.65571567,0.00027397,2]
[322220520,1712887841545,-191.53845241,0.00027397,2]
[322220521,1712887841555,-500.0,0.00027397,2]
[322220522,1712887841564,-338.7752877,0.00027397,2]
[322220523,1712887841574,-266.63873256,0.00027397,2]
[322220524,1712887841876,-233.36126744,0.00027397,2]
[322220525,1712887841886,-500.0,0.00027397,2]
[322220526,1712887841897,-218.65766527,0.00027397,2]
[322220527,1712887841909,-281.34233473,0.00027397,2]
[322220528,1712887841918,-500.0,0.00027397,2]
[322220529,1712887841927,-500.0,0.00027397,2]
[322220530,1712887841937,-520.3057641,0.00027397,2]
[322220531,1712887841947,-500.0,0.00027397,2]
[322220532,1712887841956,-181.65996458,0.00027397,2]
[322220533,1712887841965,-500.0,0.00027397,2]
[322220534,1712887841975,-500.0,0.00027397,2]
[322220535,1712887841985,-511.05116195,0.00027397,2]
[322220536,1712887841994,-500.0,0.00027397,2]
[322220537,1712887842004,-182.09691134,0.00027397,2]
[322220538,1712887842013,-473.46066297,0.00027397,2]
[322220539,1712887842022,-128.7678118,0.00027397,2]
[322220544,1712887843104,-371.55701638,0.00027397,2]
[322220545,1712887843115,-105.06638946,0.00027397,2]
[322220546,1712887843215,-590.55361054,0.00027397,2]
[322220547,1712887843224,-458.44837735,0.00027397,2]
[322220548,1712887843236,-41.55162265,0.00027397,2]
[322220549,1712887843246,-374.19314504,0.00027397,2]
[322220550,1712887843499,-134.76946255,0.00027397,2]
[322220551,1712887843509,-500.0,0.00027397,2]
[322220552,1712887843520,-500.0,0.00027397,2]
[322220553,1712887843531,-530.35489284,0.00027397,2]
[322220554,1712887843541,-500.0,0.00027397,2]
[322220555,1712887843552,-361.6541647,0.00027397,2]
[322220561,1712887846087,-155.57702862,0.00027396,2]
[322220562,1712887846097,-393.98021948,0.00027397,2]
[322220563,1712887846142,-1000.0,0.00027396,2]
[322220564,1712887846151,-109.01978052,0.00027397,2]
[322220565,1712887846161,-148.74817649,0.00027397,2]
[322220566,1712887846172,-501.19925022,0.00027397,2]
[322220567,1712887846182,-500.0,0.00027397,2]
[322220568,1712887846191,-500.0,0.00027397,2]
[322220569,1712887846201,-500.0,0.00027397,2]
[322220570,1712887846210,-500.0,0.00027397,2]
[322220571,1712887846220,-529.73781442,0.00027397,2]
[322220572,1712887846229,-500.0,0.00027397,2]
[322220573,1712887846241,-500.0,0.00027397,2]
[322220574,1712887846252,-463.48722828,0.00027397,2]
[322220575,1712887846262,-514.13303419,0.00027397,2]
[322220576,1712887846272,-500.0,0.00027397,2]
[322220577,1712887846282,-500.0,0.00027397,2]
[322220578,1712887846291,-313.63411779,0.00027397,2]
[322220579,1712887846305,-186.36588221,0.00027397,2]
[322220580,1712887846315,-573.82830497,0.00027397,2]
[322220581,1712887846326,-511.47187074,0.00027397,2]
[322220582,1712887846336,-635.6340732,0.00027397,2]
[322220583,1712887846346,-500.0,0.00027397,2]
[322220584,1712887846356,-123.69902216,0.00027397,2]
[322220585,1712887846368,-376.30097784,0.00027397,2]
[322220586,1712887846378,-449.34094527,0.00027397,2]
[322220587,1712887846389,-50.65905473,0.00027397,2]
[322220588,1712887846399,-500.0,0.00027397,2]
[322220589,1712887846408,-289.18265422,0.00027397,2]
[322220590,1712887846418,-500.0,0.00027397,2]
[322220591,1712887846427,-500.0,0.00027397,2]
[322220592,1712887846436,-500.0,0.00027397,2]
[322220593,1712887846446,-500.0,0.00027397,2]
[322220594,1712887846455,-500.0,0.00027397,2]
[322220595,1712887846465,-512.0226431,0.00027397,2]
[322220596,1712887846475,-500.0,0.00027397,2]
[322220597,1712887846484,-500.0,0.00027397,2]
[322220598,1712887846493,-506.44919661,0.00027397,2]
[322220599,1712887846503,-283.85677759,0.00027397,2]
[322220600,1712887846512,-386.43437535,0.00027397,2]
[322220604,1712887846547,-113.56562465,0.00027397,2]
[322220606,1712887846557,-191.92011617,0.00027397,2]
[322220669,1712887848247,1490.695,0.00020443,2]
[322220680,1712888402752,150.0,0.00020443,2]
[322220681,1712888402944,150.0,0.00020443,2]
[322220682,1712888403382,150.0,0.00020443,2]
[322220683,1712888403622,150.0,0.00020443,2]
[322220684,1712888403839,150.0,0.00020443,2]
[322220685,1712888404052,150.0,0.00020443,2]
[322220686,1712888404242,150.0,0.00020443,2]
[322220687,1712888404438,150.0,0.00020443,2]
[322220688,1712888404646,150.0,0.00020443,2]
[322220689,1712888404821,150.0,0.00020443,2]
[322220690,1712888405011,150.0,0.00020443,2]
[322220691,1712888405201,150.0,0.00020443,2]
[322220692,1712888405386,150.0,0.00020443,2]
[322220693,1712888405609,150.0,0.00020443,2]
[322220694,1712888405814,300.0,0.00020443,2]
[322220702,1712888625491,183.97,0.00020419,2]
[322220703,1712888705758,72283.0,0.000205,2]
[322220704,1712888752211,150.14229404,0.00020479,2]
[322220705,1712888786440,55046.55816,0.00034091,30]
[322220711,1712889020390,2579.0,0.000205,2]
[322220723,1712889032201,-530.40388097,0.00020587,2]
[322220725,1712889032270,-469.59611903,0.00020587,2]
[322220726,1712889032279,-918.78796068,0.00020588,2]
[322220727,1712889032291,-2057.80585006,0.00020588,2]
[322220728,1712889032300,-2021.666875,0.0002059,2]
[322220729,1712889032309,-350.0,0.00021,3]
[322220730,1712889032318,-400.0,0.00023,3]
[322220731,1712889032328,-577.24,0.00023634,2]
[322220732,1712889032339,-150.99,0.00024322,2]
[322220733,1712889032348,-450.0,0.00025,3]
[322220734,1712889032357,-203.47299386,0.00025391,2]
[322220735,1712889032369,-2186.92446566,0.00025391,2]
[322220736,1712889032378,-2061.69523775,0.00025392,2]
[322220737,1712889032398,-1153.14498774,0.00025392,2]
[322220738,1712889032407,-250.0,0.00025467,2]
[322220739,1712889032416,-4396.54,0.00025474,2]
[322220740,1712889032425,-1507.05503223,0.0002549,2]
[322220741,1712889032445,-591.826501,0.0002549,2]
[322220742,1712889032457,-2693.73846677,0.0002549,2]
[322220743,1712889032467,-796.18,0.00025564,2]
[322220744,1712889032476,-500.0,0.00025572,2]
[322220745,1712889032485,-1391.98,0.00025573,2]
[322220746,1712889032494,-250.0,0.00025591,2]
[322220747,1712889032503,-800.0,0.00025596,2]
[322220748,1712889032512,-3020.16337905,0.000256,2]
[322220749,1712889032523,-74.83662095,0.000256,2]
[322220750,1712889032532,-236.02317905,0.00025777,2]
[322220751,1712889032544,-1007.15591784,0.00025777,2]
[322220752,1712889032573,-141.21090311,0.00025777,2]
[322220753,1712889032582,-577.24,0.00025898,2]
[322220754,1712889032594,-200.0,0.00025986,2]
[322220755,1712889032603,-693.23414563,0.00026026,2]
[322220756,1712889032615,-602.58454772,0.00026026,2]
[322220757,1712889032624,-159.22761975,0.00027,3]
[322220758,1712889032638,-340.77238025,0.00027,3]
[322220759,1712889032649,-266.64473152,0.00027016,2]
[322220778,1712889038333,-161.16526848,0.00027016,2]
[322220779,1712889038342,-153.49,0.00027016,2]
[322220782,1712889038351,-2378.8440991,0.00027126,2]
[322220784,1712889038361,-894.7118,0.00027197,2]
[322220786,1712889038370,-1129.82130413,0.00027197,3]
[322220788,1712889038380,-2976.56281149,0.00027197,2]
[322220801,1712889039174,-11790.99203034,0.00027197,2]
[322220802,1712889039183,-717.01215739,0.00027199,2]
[322220803,1712889039193,-2520.08035335,0.00027199,2]
[322220804,1712889039203,-5802.210965,0.000272,2]
[322220805,1712889039212,-8703.316448,0.000272,2]
[322220806,1712889039222,-11604.421931,0.000272,2]
[322220807,1712889039231,-14505.527414,0.000272,2]
[322220808,1712889039240,-12534.63532654,0.000272,2]
[322220809,1712889040405,-748.41455835,0.000272,2]
[322220810,1712889040616,-348.64959659,0.000272,2]
[322220815,1712889043281,-6676.03889852,0.000272,2]
[322220816,1712889043291,-155.60556781,0.00027222,2]
[322220817,1712889043301,-150.73908605,0.00027234,2]
[322220818,1712889043310,-200.0,0.00027268,2]
[322220819,1712889043319,-264.17,0.00027287,2]
[322220820,1712889043329,-717.01215723,0.00027289,2]
[322220821,1712889043340,-210.19090275,0.00027294,2]
[322220822,1712889043350,-330.52334504,0.00027295,2]
[322220823,1712889043360,-1000.0,0.00027297,2]
[322220824,1712889043369,-500.0,0.00027297,2]
[322220825,1712889043378,-413.7219,0.00027297,2]
[322220826,1712889043387,-1000.0,0.00027297,2]
[322220827,1712889043396,-42371.54657533,0.00027297,2]
[322220828,1712889043417,-13690.0,0.00027297,2]
[322220829,1712889043441,-6941.53936459,0.00027297,2]
[322220830,1712889043453,-448.78301457,0.00027297,2]
[322220831,1712889043619,-701.39012554,0.00027297,2]
[322220851,1712889046374,-1000.0,0.00027199,2]
[322220852,1712889046384,-795.36741921,0.00027297,2]
[322220853,1712889046429,-727.95,0.00027297,2]
[322220854,1712889046596,-1984.41372492,0.00027297,2]
[322220855,1712889046648,-566.77160315,0.00027297,2]
[322220875,1712889080694,440.0,0.00022,10]
[322220876,1712889201255,999.0,0.0003409,120]
[322220877,1712889339403,293.11144877,0.0002,2]
[322220895,1712890231513,-155.0,0.00020998,2]
[322220896,1712890231523,-1000.0,0.00020999,2]
[322220897,1712890231532,-350.0,0.00021,3]
[322220898,1712890231542,-400.0,0.00023,3]
[322220899,1712890231552,-4506.61,0.00023108,2]
[322220900,1712890231561,-563.58,0.00023257,2]
[322220901,1712890231571,-450.0,0.00025,3]
[322220902,1712890231580,-500.0,0.00025074,2]
[322220903,1712890231590,-522.53,0.00025101,2]
[322220904,1712890231600,-200.0,0.00025104,2]
[322220905,1712890231609,-150.0,0.0002511,2]
[322220906,1712890231622,-640.0,0.00025111,2]
[322220907,1712890231632,-1123.15,0.00025114,2]
[322220908,1712890231641,-500.0,0.00025118,2]
[322220909,1712890231651,-311.56,0.00025125,2]
[322220910,1712890231664,-2098.6,0.0002514,2]
[322220911,1712890231674,-250.0,0.00025156,2]
[322220912,1712890231683,-1138.42,0.00025165,2]
[322220913,1712890231694,-150.0,0.00025178,2]
[322220914,1712890231703,-150.0,0.00025233,2]
[322220915,1712890231712,-250.0,0.00025235,2]
[322220916,1712890231722,-9628.7341675,0.00025298,2]
[322220917,1712890231743,-2672.05989256,0.00025298,2]
[322220918,1712890231755,-438.97877864,0.00025298,2]
[322220919,1712890231771,-11150.2271613,0.00025298,2]
[322220920,1712890231781,-250.0,0.00025305,2]
[322220921,1712890231790,-178.539077,0.00025479,2]
[322220922,1712890231800,-563.58,0.00025521,2]
[322220923,1712890231810,-169.11,0.00025549,2]
[322220925,1712890231820,-360.0,0.00025572,2]
[322220927,1712890231829,-499.99,0.00025583,2]
[322220929,1712890231838,-4506.61,0.00025848,2]
[322220931,1712890231849,-389.88,0.00026061,2]
[322220933,1712890231858,-389.88,0.00026068,2]
[322220934,1712890231868,-389.88,0.00026075,2]
[322220935,1712890231878,-389.88,0.00026082,2]
[322220936,1712890231887,-389.88,0.00026088,2]
[322220937,1712890231898,-389.88,0.00026095,2]
[322220938,1712890231907,-389.88,0.00026102,2]
[322220939,1712890231917,-389.88,0.00026109,2]
[322220940,1712890231926,-389.88,0.00026116,2]
[322220941,1712890231936,-389.88,0.00026123,2]
[322220942,1712890231945,-389.88,0.0002613,2]
[322220943,1712890231954,-389.88,0.00026136,2]
[322220944,1712890231967,-389.88,0.00026143,2]
[322220945,1712890231976,-389.88,0.0002615,2]
[322220946,1712890231986,-389.88,0.00026157,2]
[322220947,1712890231995,-389.88,0.00026164,2]
[322220948,1712890232005,-389.88,0.00026171,2]
[322220949,1712890232015,-389.88,0.00026178,2]
[322220950,1712890232024,-389.88,0.00026184,2]
[322220951,1712890232033,-389.88,0.00026191,2]
[322220952,1712890232043,-1887.80340815,0.00026289,2]
[322220953,1712890232052,-178.539077,0.00026301,2]
[322220954,1712890232063,-170.24,0.00026366,2]
[322220955,1712890232072,-209.57,0.0002654,2]
[322220956,1712890232082,-500.0,0.00027,3]
[322220957,1712890232092,-150.0,0.00027041,2]
[322220958,1712890232102,-3464.10609304,0.00027097,2]
[322220959,1712890232114,-2401.13681457,0.00027097,2]
[322220960,1712890232126,-1207.64325977,0.00027097,2]
[322220961,1712890232138,-301.44505381,0.00027097,2]
[322220962,1712890232158,-405.20748901,0.00027097,2]
[322220963,1712890232171,-344.1262584,0.00027097,2]
[322220979,1712890237388,-692.79472096,0.00027097,2]
[322220981,1712890238311,-484.4675643,0.00027097,2]
[322220982,1712890238323,-1425.94447234,0.00027097,2]
[322220983,1712890238335,-2081.4553738,0.00027097,2]
[322220984,1712890238345,-13106.54348519,0.00027099,2]
[322220985,1712890238356,-475.01756731,0.00027099,2]
[322220986,1712890238365,-745.19019175,0.000271,2]
[322220987,1712890238376,-406.46916604,0.000271,2]
[322220988,1712890238388,-428.61941707,0.000271,2]
[322220989,1712890238399,-315.19030927,0.000271,2]
[322220990,1712890238901,-388.44167565,0.000271,2]
[322220991,1712890238910,-988.59364114,0.000271,3]
[322220992,1712890238923,-1783.9053202,0.000271,2]
[322220993,1712890238932,-13857.81567958,0.00027119,2]
[322220994,1712890238944,-11070.940885,0.00027119,2]
[322220995,1712890238957,-651.8383,0.00027119,2]
[322221007,1712890239471,-1153.5,0.00027119,2]
[322221013,1712890239528,-496.27636977,0.00027119,2]
[322221033,1712890241661,-760.90993712,0.00027119,2]
[322221034,1712890242520,-15283.06259892,0.00027119,2]
[322221035,1712890242530,-178.539077,0.00027123,2]
[322221036,1712890242541,-1783.90532019,0.00027149,2]
[322221037,1712890242551,-154.09758037,0.00027159,2]
[322221038,1712890242560,-239.85,0.00027187,2]
[322221039,1712890242570,-153.51916251,0.00027193,2]
[322221040,1712890242579,-167.041211,0.00027193,6]
[322221041,1712890242588,-157.041211,0.00027194,7]
[322221042,1712890242598,-155.0,0.00027196,2]
[322221043,1712890242607,-331.114,0.00027197,2]
[322221044,1712890242618,-1000.0,0.00027197,2]
[322221045,1712890242631,-245000.0,0.00027197,2]
[322221046,1712890242640,-1783.90532019,0.00027199,2]
[322221047,1712890242650,-2756.050209,0.000272,2]
[322221048,1712890242660,-4134.075313,0.000272,2]
[322221049,1712890242672,-5512.100418,0.000272,2]
[322221050,1712890242682,-6890.125522,0.000272,2]
[322221051,1712890242691,-9646.175731,0.000272,2]
[322221052,1712890242701,-1783.90532019,0.00027248,2]
[322221053,1712890242712,-200.0,0.00027268,2]
[322221054,1712890242722,-330.52334504,0.00027295,2]
[322221055,1712890242731,-1049.03771526,0.00027296,2]
[322221056,1712890242741,-1292.17419625,0.00027296,2]
[322221057,1712890242750,-271.0158,0.00027297,2]
[322221058,1712890242760,-950.152,0.00027297,2]
[322221059,1712890242769,-811.19879,0.00027297,2]
[322221060,1712890242779,-157.18489302,0.00027297,2]
[322221061,1712890242788,-1783.90532019,0.00027297,2]
[322221062,1712890242798,-17645.0,0.000273,3]
[322221063,1712890242807,-152.0,0.00027301,3]
[322221064,1712890242818,-200.0,0.00027313,2]
[322221065,1712890242828,-1000.0,0.00027313,2]
[322221066,1712890242837,-500.0,0.00027313,2]
[322221067,1712890242847,-239.85,0.00027385,2]
[322221068,1712890242856,-224.89619492,0.00027387,2]
[322221069,1712890242866,-239.85,0.00027387,2]
[322221070,1712890242875,-228.8111743,0.00027393,2]
[322221071,1712890242885,-155.68956791,0.00027393,2]
[322221072,1712890242894,-377.20223171,0.00027393,2]
[322221073,1712890242903,-687.29721744,0.00027393,2]
[322221074,1712890242913,-550.63356813,0.00027393,2]
[322221075,1712890242926,-156.00659172,0.00027394,2]
[322221076,1712890242936,-155.2404315,0.00027395,2]
[322221077,1712890242945,-156.06332127,0.00027395,2]
[322221078,1712890242954,-362.67387074,0.00027395,2]
[322221079,1712890242964,-312.01945863,0.00027395,2]
[322221080,1712890242973,-45826.91585857,0.00027395,2]